[Event "*** Biggest EVER Titled Tuesday"]
[Site "Chess.com"]
[Date "2018.04.17"]
[Round "2"]
[White "Grootneus"]
[Black "pedroholly22"]
[Result "0-1"]
[WhiteElo "2096"]
[BlackElo "2226"]
[TimeControl "180+2"]
[EndTime "13:20:19 PDT"]
[Termination "pedroholly22 won by resignation"]

1. e4 {[%clk 0:03:01.9]} 1... c5 {[%clk 0:03:01.9]} 2. c3 {[%clk 0:03:02.5]}
2... g6 {[%clk 0:02:53.5]} 3. Nf3 {[%clk 0:02:55.8]} 3... Bg7 {[%clk 0:02:50.9]}
4. d4 {[%clk 0:02:54.5]} 4... cxd4 {[%clk 0:02:52.8]} 5. cxd4 {[%clk 0:02:56]}
5... d5 {[%clk 0:02:53.7]} 6. e5 {[%clk 0:02:57.5]} 6... Nh6 {[%clk 0:02:53.8]}
7. h3 {[%clk 0:02:51.1]} 7... Nc6 {[%clk 0:02:52.9]} 8. Bb5 {[%clk 0:02:51]}
8... O-O {[%clk 0:02:52.3]} 9. Bxc6 {[%clk 0:02:50.7]} 9... bxc6 {[%clk
0:02:51.9]} 10. O-O {[%clk 0:02:52.6]} 10... f6 {[%clk 0:02:53]} 11. exf6 {[%clk
0:02:44]} 11... exf6 {[%clk 0:02:54.8]} 12. Nc3 {[%clk 0:02:43.2]} 12... Nf7
{[%clk 0:02:55.8]} 13. Bf4 {[%clk 0:02:39.2]} 13... Bf5 {[%clk 0:02:53.8]} 14.
Rc1 {[%clk 0:02:37.6]} 14... Rc8 {[%clk 0:02:38.6]} 15. Na4 {[%clk 0:02:35.3]}
15... Nd6 {[%clk 0:02:38]} 16. Bxd6 {[%clk 0:02:35.9]} 16... Qxd6 {[%clk
0:02:33.2]} 17. Nd2 {[%clk 0:02:23.1]} 17... Be6 {[%clk 0:02:30.7]} 18. Nb3
{[%clk 0:02:22.4]} 18... Bf7 {[%clk 0:02:30.3]} 19. Rc3 {[%clk 0:02:17.2]} 19...
f5 {[%clk 0:02:30.7]} 20. Qc1 {[%clk 0:02:14.9]} 20... f4 {[%clk 0:02:29.3]} 21.
Rd1 {[%clk 0:02:13.5]} 21... Be6 {[%clk 0:02:28.9]} 22. Na5 {[%clk 0:02:11]}
22... Bd7 {[%clk 0:02:23.6]} 23. Qd2 {[%clk 0:01:44.3]} 23... f3 {[%clk
0:02:23]} 24. Rxf3 {[%clk 0:01:35.9]} 24... Rxf3 {[%clk 0:02:22.1]} 25. gxf3
{[%clk 0:01:37.8]} 25... Rf8 {[%clk 0:02:21.6]} 26. Re1 {[%clk 0:01:14.6]} 26...
Rxf3 {[%clk 0:02:18.1]} 27. Nc5 {[%clk 0:01:15.2]} 27... Rxh3 {[%clk 0:02:12.9]}
28. Qg5 {[%clk 0:01:03]} 28... Qh2+ {[%clk 0:02:01.8]} 29. Kf1 {[%clk
0:01:03.8]} 29... Qh1+ {[%clk 0:01:54.8]} 30. Ke2 {[%clk 0:01:04.2]} 30... Qf3+
{[%clk 0:01:55.2]} 31. Kd2 {[%clk 0:00:57.6]} 31... Bh6 {[%clk 0:01:55.8]} 32.
Qxh6 {[%clk 0:00:47.2]} 32... Qxf2+ {[%clk 0:01:53.3]} 33. Kd1 {[%clk 0:00:36]}
33... Bg4+ {[%clk 0:01:41.6]} 0-1

[Event "*** Biggest EVER Titled Tuesday"]
[Site "Chess.com"]
[Date "2018.04.17"]
[Round "2"]
[White "LawrenceTrent"]
[Black "HarutyunianTigranK"]
[Result "1-0"]
[WhiteElo "2515"]
[BlackElo "2691"]
[TimeControl "180+2"]
[EndTime "13:20:26 PDT"]
[Termination "LawrenceTrent won by resignation"]

1. d4 {[%clk 0:03:01.9]} 1... Nf6 {[%clk 0:02:59]} 2. Bg5 {[%clk 0:03:03]} 2...
e6 {[%clk 0:02:58.9]} 3. e4 {[%clk 0:03:03.8]} 3... h6 {[%clk 0:02:59.6]} 4.
Bxf6 {[%clk 0:03:05.1]} 4... Qxf6 {[%clk 0:03:01.3]} 5. c3 {[%clk 0:03:06.7]}
5... Nc6 {[%clk 0:03:01.2]} 6. Bd3 {[%clk 0:03:03.9]} 6... e5 {[%clk 0:03:02.4]}
7. d5 {[%clk 0:02:58.5]} 7... Bc5 {[%clk 0:02:59.3]} 8. Qf3 {[%clk 0:02:56.3]}
8... Ne7 {[%clk 0:02:48.9]} 9. Qxf6 {[%clk 0:02:47.2]} 9... gxf6 {[%clk
0:02:50.5]} 10. Nd2 {[%clk 0:02:49.1]} 10... d6 {[%clk 0:02:50.4]} 11. b4 {[%clk
0:02:49.4]} 11... Bb6 {[%clk 0:02:50.6]} 12. Nc4 {[%clk 0:02:50.6]} 12... f5
{[%clk 0:02:48.8]} 13. a4 {[%clk 0:02:41]} 13... fxe4 {[%clk 0:02:35.8]} 14.
Bxe4 {[%clk 0:02:41.8]} 14... a6 {[%clk 0:02:27.9]} 15. Nxb6 {[%clk 0:02:32.2]}
15... cxb6 {[%clk 0:02:29.8]} 16. f4 {[%clk 0:02:00.7]} 16... f5 {[%clk
0:02:24.5]} 17. Bf3 {[%clk 0:02:01.9]} 17... e4 {[%clk 0:02:18.4]} 18. Bh5+
{[%clk 0:02:02.6]} 18... Kd8 {[%clk 0:02:19.5]} 19. Ne2 {[%clk 0:02:01.9]} 19...
Nxd5 {[%clk 0:02:15.9]} 20. O-O-O {[%clk 0:01:48.7]} 20... Ne3 {[%clk
0:02:15.4]} 21. Rxd6+ {[%clk 0:01:47.5]} 21... Kc7 {[%clk 0:01:55.8]} 22. Rg6
{[%clk 0:01:48.2]} 22... Bd7 {[%clk 0:01:49.5]} 23. Rg3 {[%clk 0:01:33.9]} 23...
Nc4 {[%clk 0:01:42.7]} 24. Bf7 {[%clk 0:01:29.5]} 24... Nd6 {[%clk 0:01:38]} 25.
Bb3 {[%clk 0:01:30]} 25... b5 {[%clk 0:01:06.1]} 26. a5 {[%clk 0:01:22.6]} 26...
Nc4 {[%clk 0:01:06.9]} 27. Rd1 {[%clk 0:01:21.2]} 27... Rag8 {[%clk 0:01:05.5]}
28. Rxg8 {[%clk 0:01:08.4]} 28... Rxg8 {[%clk 0:01:07.4]} 29. g3 {[%clk
0:01:05.3]} 29... h5 {[%clk 0:01:08.3]} 30. Rd4 {[%clk 0:00:58.7]} 30... Ne3
{[%clk 0:00:59.3]} 31. Bxg8 {[%clk 0:00:57.6]} 1-0

[Event "*** Biggest EVER Titled Tuesday"]
[Site "Chess.com"]
[Date "2018.04.17"]
[Round "2"]
[White "Godzillator"]
[Black "BjarkeSahl"]
[Result "1/2-1/2"]
[WhiteElo "2279"]
[BlackElo "2210"]
[TimeControl "180+2"]
[EndTime "13:20:27 PDT"]
[Termination "Game drawn by repetition"]

1. d4 {[%clk 0:03:01.9]} 1... Nf6 {[%clk 0:02:56.9]} 2. c4 {[%clk 0:03:03.1]}
2... e6 {[%clk 0:02:57.5]} 3. Nc3 {[%clk 0:03:04.3]} 3... d5 {[%clk 0:02:57.4]}
4. cxd5 {[%clk 0:03:04.9]} 4... Nxd5 {[%clk 0:02:57.8]} 5. e4 {[%clk 0:03:04.8]}
5... Nxc3 {[%clk 0:02:57.5]} 6. bxc3 {[%clk 0:03:06]} 6... c5 {[%clk 0:02:59.1]}
7. Nf3 {[%clk 0:03:05.4]} 7... cxd4 {[%clk 0:03:00.2]} 8. cxd4 {[%clk
0:03:06.7]} 8... Bb4+ {[%clk 0:02:55.7]} 9. Bd2 {[%clk 0:03:07.6]} 9... Bxd2+
{[%clk 0:02:52.4]} 10. Qxd2 {[%clk 0:03:08.1]} 10... O-O {[%clk 0:02:53.9]} 11.
Be2 {[%clk 0:03:08]} 11... b6 {[%clk 0:02:52]} 12. O-O {[%clk 0:03:00.2]} 12...
Bb7 {[%clk 0:02:43.1]} 13. Qe3 {[%clk 0:03:00.7]} 13... Ba6 {[%clk 0:02:23.5]}
14. Bxa6 {[%clk 0:02:55.6]} 14... Nxa6 {[%clk 0:02:24.3]} 15. Rfd1 {[%clk
0:02:56.4]} 15... Rc8 {[%clk 0:02:20.8]} 16. Rac1 {[%clk 0:02:54.1]} 16... Qe7
{[%clk 0:02:17.9]} 17. Ne5 {[%clk 0:02:51.5]} 17... Qb7 {[%clk 0:02:18.1]} 18.
f3 {[%clk 0:02:47.4]} 18... Rxc1 {[%clk 0:02:12.2]} 19. Rxc1 {[%clk 0:02:47.7]}
19... Rc8 {[%clk 0:02:13.5]} 20. h3 {[%clk 0:02:28.7]} 20... Rxc1+ {[%clk
0:02:06.7]} 21. Qxc1 {[%clk 0:02:29.4]} 21... Qc7 {[%clk 0:02:08.2]} 22. Qa3
{[%clk 0:02:22.1]} 22... Nb8 {[%clk 0:02:02.7]} 23. Qb2 {[%clk 0:02:15.9]} 23...
f6 {[%clk 0:01:59.1]} 24. Ng4 {[%clk 0:02:11.8]} 24... h5 {[%clk 0:01:52.9]} 25.
Ne3 {[%clk 0:02:12.2]} 25... Qd7 {[%clk 0:01:34.7]} 26. d5 {[%clk 0:02:10.7]}
26... exd5 {[%clk 0:01:32.5]} 27. Nxd5 {[%clk 0:02:09]} 27... Qf7 {[%clk
0:01:31.3]} 28. Qc1 {[%clk 0:02:02.2]} 28... Nd7 {[%clk 0:01:23.7]} 29. Qc7
{[%clk 0:02:01.4]} 29... Ne5 {[%clk 0:01:21.9]} 30. Ne7+ {[%clk 0:01:55.1]}
30... Kh7 {[%clk 0:01:22.1]} 31. Qd8 {[%clk 0:01:50.3]} 31... Qxa2 {[%clk
0:01:17.5]} 32. Qe8 {[%clk 0:01:45.9]} 32... Qf7 {[%clk 0:01:17.1]} 33. Qd8
{[%clk 0:01:45.7]} 33... b5 {[%clk 0:01:14.9]} 34. Nf5 {[%clk 0:01:46.9]} 34...
b4 {[%clk 0:01:15.1]} 35. Nd6 {[%clk 0:01:47.9]} 35... Qg6 {[%clk 0:01:13.9]}
36. Kh2 {[%clk 0:01:41.7]} 36... b3 {[%clk 0:01:13]} 37. Qb8 {[%clk 0:01:42.7]}
37... h4 {[%clk 0:01:09]} 38. Nf5 {[%clk 0:01:43.7]} 38... Qg5 {[%clk
0:01:09.2]} 39. Qxb3 {[%clk 0:01:42]} 39... Qf4+ {[%clk 0:01:10.2]} 40. Kh1
{[%clk 0:01:38.8]} 40... Qc1+ {[%clk 0:01:10.7]} 41. Kh2 {[%clk 0:01:39.2]}
41... Qf4+ {[%clk 0:01:12.2]} 42. Kh1 {[%clk 0:01:38.8]} 42... Qc1+ {[%clk
0:01:10.4]} 43. Kh2 {[%clk 0:01:37.8]} 43... Qf4+ {[%clk 0:01:09.8]} 1/2-1/2

[Event "*** Biggest EVER Titled Tuesday"]
[Site "Chess.com"]
[Date "2018.04.17"]
[Round "2"]
[White "Blackmind96"]
[Black "Flawless2018"]
[Result "1-0"]
[WhiteElo "2610"]
[BlackElo "2484"]
[TimeControl "180+2"]
[EndTime "13:20:28 PDT"]
[Termination "Blackmind96 won by resignation"]

1. d4 {[%clk 0:03:01.9]} 1... Nf6 {[%clk 0:03:00.7]} 2. c4 {[%clk 0:03:02.3]}
2... e6 {[%clk 0:02:59.8]} 3. Nc3 {[%clk 0:03:02.6]} 3... Bb4 {[%clk 0:02:59.9]}
4. e3 {[%clk 0:03:01.6]} 4... O-O {[%clk 0:03:00.2]} 5. Ne2 {[%clk 0:03:01.5]}
5... d5 {[%clk 0:02:50.7]} 6. a3 {[%clk 0:03:00.5]} 6... Be7 {[%clk 0:02:50.9]}
7. cxd5 {[%clk 0:02:59.9]} 7... exd5 {[%clk 0:02:51.8]} 8. g3 {[%clk 0:03:01.1]}
8... Nbd7 {[%clk 0:02:46.9]} 9. Bg2 {[%clk 0:03:01.3]} 9... Nb6 {[%clk
0:02:48.2]} 10. O-O {[%clk 0:02:59.9]} 10... Re8 {[%clk 0:02:49.8]} 11. f3
{[%clk 0:02:34.6]} 11... Bd6 {[%clk 0:02:49]} 12. e4 {[%clk 0:02:32.5]} 12... c5
{[%clk 0:02:49.2]} 13. Be3 {[%clk 0:01:33.5]} 13... dxe4 {[%clk 0:02:37.6]} 14.
dxc5 {[%clk 0:01:33.1]} 14... Nc4 {[%clk 0:02:36.5]} 15. Bd4 {[%clk 0:01:25.7]}
15... exf3 {[%clk 0:02:15.7]} 16. cxd6 {[%clk 0:01:14.5]} 16... fxe2 {[%clk
0:02:12.9]} 17. Nxe2 {[%clk 0:01:05.1]} 17... Ne3 {[%clk 0:02:06.6]} 18. Bxe3
{[%clk 0:01:05]} 18... Rxe3 {[%clk 0:02:08.5]} 19. Nf4 {[%clk 0:00:59.5]} 19...
Qb6 {[%clk 0:02:01.1]} 20. Kh1 {[%clk 0:00:58]} 20... Bg4 {[%clk 0:01:59.2]} 21.
Nd5 {[%clk 0:00:39.6]} 21... Nxd5 {[%clk 0:01:57.6]} 22. Qxg4 {[%clk 0:00:39.8]}
22... Re5 {[%clk 0:01:30.6]} 23. Qf3 {[%clk 0:00:27.8]} 23... Nf6 {[%clk
0:01:22.9]} 24. Rad1 {[%clk 0:00:21.2]} 24... Qxb2 {[%clk 0:01:18.7]} 25. Qxb7
{[%clk 0:00:19.4]} 25... Rd8 {[%clk 0:01:17.8]} 26. Qxb2 {[%clk 0:00:19.2]} 1-0

[Event "*** Biggest EVER Titled Tuesday"]
[Site "Chess.com"]
[Date "2018.04.17"]
[Round "2"]
[White "ChadBiryani"]
[Black "calemcc"]
[Result "1-0"]
[WhiteElo "2247"]
[BlackElo "2242"]
[TimeControl "180+2"]
[EndTime "13:20:39 PDT"]
[Termination "ChadBiryani won by resignation"]

1. d4 {[%clk 0:03:00]} 1... d5 {[%clk 0:03:00.6]} 2. Bf4 {[%clk 0:02:59.9]} 2...
Nf6 {[%clk 0:02:59.5]} 3. e3 {[%clk 0:03:01.1]} 3... c5 {[%clk 0:02:59.6]} 4.
dxc5 {[%clk 0:03:00.4]} 4... Nc6 {[%clk 0:02:54.1]} 5. Bb5 {[%clk 0:03:00.1]}
5... Bg4 {[%clk 0:02:51.2]} 6. Nf3 {[%clk 0:02:51.4]} 6... Qa5+ {[%clk
0:02:43.5]} 7. Nc3 {[%clk 0:02:51.8]} 7... Qb4 {[%clk 0:02:31.2]} 8. Qd4 {[%clk
0:02:34.4]} 8... Qxb2 {[%clk 0:02:10.1]} 9. Rb1 {[%clk 0:02:12.5]} 9... Qa3
{[%clk 0:01:56.1]} 10. Nxd5 {[%clk 0:02:00.5]} 10... O-O-O {[%clk 0:00:53.9]}
11. Bxc6 {[%clk 0:01:44.9]} 11... Qa5+ {[%clk 0:00:42.9]} 12. Kf1 {[%clk
0:01:38.5]} 12... Qa6+ {[%clk 0:00:26.1]} 13. Bb5 {[%clk 0:01:28.4]} 13... Qxa2
{[%clk 0:00:26.7]} 14. Nc3 {[%clk 0:01:15.9]} 14... Qxb1+ {[%clk 0:00:09.7]} 15.
Nxb1 {[%clk 0:01:16.5]} 15... Rxd4 {[%clk 0:00:11.6]} 16. Nxd4 {[%clk
0:01:16.5]} 16... e6 {[%clk 0:00:12.4]} 17. Nb3 {[%clk 0:01:15.6]} 17... Ne4
{[%clk 0:00:13]} 18. f3 {[%clk 0:01:14.9]} 18... g5 {[%clk 0:00:12.5]} 19. Be5
{[%clk 0:01:12.9]} 19... f6 {[%clk 0:00:13.7]} 20. Bb2 {[%clk 0:01:14.1]} 20...
Nxc5 {[%clk 0:00:12.6]} 21. Nxc5 {[%clk 0:01:14.2]} 21... Bxc5 {[%clk
0:00:13.1]} 22. fxg4 {[%clk 0:01:15.7]} 22... Bxe3 {[%clk 0:00:14.6]} 23. Ke2
{[%clk 0:01:16.8]} 23... Bc5 {[%clk 0:00:09.9]} 24. Bxf6 {[%clk 0:01:16]} 24...
Rf8 {[%clk 0:00:11.4]} 25. Rf1 {[%clk 0:01:17.2]} 25... h6 {[%clk 0:00:11.1]}
26. Be5 {[%clk 0:01:16.4]} 26... Rd8 {[%clk 0:00:12.2]} 27. Nc3 {[%clk
0:01:15.5]} 27... Bd4 {[%clk 0:00:12.6]} 28. Bxd4 {[%clk 0:01:16.3]} 28... Rxd4
{[%clk 0:00:14.5]} 29. Bd3 {[%clk 0:01:17.7]} 1-0

[Event "*** Biggest EVER Titled Tuesday"]
[Site "Chess.com"]
[Date "2018.04.17"]
[Round "2"]
[White "OparinGrigoriy"]
[Black "Denis0027"]
[Result "1-0"]
[WhiteElo "2860"]
[BlackElo "2516"]
[TimeControl "180+2"]
[EndTime "13:20:46 PDT"]
[Termination "OparinGrigoriy won by resignation"]

1. e4 {[%clk 0:03:01.9]} 1... c6 {[%clk 0:03:01.9]} 2. Nc3 {[%clk 0:03:02.5]}
2... d5 {[%clk 0:03:03.8]} 3. Nf3 {[%clk 0:03:04.1]} 3... Bg4 {[%clk 0:03:02]}
4. h3 {[%clk 0:03:05.2]} 4... Bxf3 {[%clk 0:03:03.2]} 5. Qxf3 {[%clk 0:03:07.1]}
5... Nf6 {[%clk 0:03:02.4]} 6. Be2 {[%clk 0:03:07.3]} 6... e6 {[%clk 0:03:02.8]}
7. O-O {[%clk 0:03:08]} 7... Nbd7 {[%clk 0:02:59.2]} 8. d4 {[%clk 0:03:08.9]}
8... dxe4 {[%clk 0:02:58.8]} 9. Nxe4 {[%clk 0:03:10.8]} 9... Nxe4 {[%clk
0:02:59.8]} 10. Qxe4 {[%clk 0:03:12.7]} 10... Nf6 {[%clk 0:03:01.2]} 11. Qd3
{[%clk 0:03:07.4]} 11... Bd6 {[%clk 0:02:59.6]} 12. Bf3 {[%clk 0:03:07.7]} 12...
h6 {[%clk 0:02:58.6]} 13. c4 {[%clk 0:03:07.8]} 13... O-O {[%clk 0:02:59.3]} 14.
b3 {[%clk 0:03:09.1]} 14... Qc7 {[%clk 0:02:59.6]} 15. Bb2 {[%clk 0:03:10]}
15... Rad8 {[%clk 0:03:00.2]} 16. Rfd1 {[%clk 0:03:06.4]} 16... Qa5 {[%clk
0:02:56.5]} 17. a3 {[%clk 0:03:06.7]} 17... Qg5 {[%clk 0:02:55.7]} 18. g3 {[%clk
0:03:03.2]} 18... Qf5 {[%clk 0:02:45.7]} 19. Qxf5 {[%clk 0:03:01.8]} 19... exf5
{[%clk 0:02:47.6]} 20. b4 {[%clk 0:02:59.9]} 20... Ne4 {[%clk 0:02:47.1]} 21.
Kg2 {[%clk 0:02:54.1]} 21... Rd7 {[%clk 0:02:44.8]} 22. g4 {[%clk 0:02:55]}
22... Ng5 {[%clk 0:02:15.2]} 23. gxf5 {[%clk 0:02:55.7]} 23... Nxf3 {[%clk
0:02:16.2]} 24. Kxf3 {[%clk 0:02:57.6]} 24... b5 {[%clk 0:02:07.7]} 25. d5
{[%clk 0:02:53.9]} 25... c5 {[%clk 0:01:31.3]} 26. bxc5 {[%clk 0:02:53]} 26...
Bxc5 {[%clk 0:01:33.2]} 27. cxb5 {[%clk 0:02:54.6]} 27... Rb8 {[%clk 0:01:34.3]}
28. a4 {[%clk 0:02:50.2]} 28... a6 {[%clk 0:01:35.6]} 29. Be5 {[%clk 0:02:43.3]}
29... Bd6 {[%clk 0:01:34.5]} 30. Bxd6 {[%clk 0:02:41.8]} 30... Rxd6 {[%clk
0:01:36.4]} 31. Rab1 {[%clk 0:02:43.3]} 31... axb5 {[%clk 0:01:36.5]} 32. Rxb5
{[%clk 0:02:43.5]} 32... Re8 {[%clk 0:01:36.3]} 33. Kf4 {[%clk 0:02:32.3]} 33...
g5+ {[%clk 0:01:25.1]} 34. fxg6 {[%clk 0:02:30.4]} 34... fxg6 {[%clk 0:01:25.6]}
35. Kg3 {[%clk 0:02:30.5]} 35... Re5 {[%clk 0:01:20.9]} 36. h4 {[%clk
0:02:30.7]} 36... Kg7 {[%clk 0:01:21.5]} 37. a5 {[%clk 0:02:29.2]} 37... g5
{[%clk 0:01:21.3]} 38. h5 {[%clk 0:02:30.1]} 38... Re4 {[%clk 0:01:03.3]} 39.
Ra1 {[%clk 0:02:29.2]} 39... Rf6 {[%clk 0:00:51.7]} 40. a6 {[%clk 0:02:26.2]}
40... Rff4 {[%clk 0:00:49.3]} 41. Rb7+ {[%clk 0:02:07]} 41... Kf6 {[%clk
0:00:49.1]} 42. a7 {[%clk 0:02:01.4]} 42... Rg4+ {[%clk 0:00:49.9]} 43. Kf3
{[%clk 0:02:02.4]} 43... Rgf4+ {[%clk 0:00:42.7]} 44. Kg2 {[%clk 0:02:03.2]}
44... Re2 {[%clk 0:00:43.1]} 45. Ra6+ {[%clk 0:02:02.2]} 45... Kf5 {[%clk
0:00:35.5]} 46. Rf7+ {[%clk 0:02:03]} 46... Kg4 {[%clk 0:00:36.7]} 47. Rxf4+
{[%clk 0:02:04]} 1-0

[Event "*** Biggest EVER Titled Tuesday"]
[Site "Chess.com"]
[Date "2018.04.17"]
[Round "2"]
[White "guillembaches"]
[Black "MrRooke6"]
[Result "0-1"]
[WhiteElo "2238"]
[BlackElo "2406"]
[TimeControl "180+2"]
[EndTime "13:20:46 PDT"]
[Termination "MrRooke6 won on time"]

1. d4 {[%clk 0:03:01.9]} 1... Nf6 {[%clk 0:03:00.4]} 2. Bf4 {[%clk 0:03:02.8]}
2... g6 {[%clk 0:03:01.3]} 3. Nc3 {[%clk 0:03:03.2]} 3... Bg7 {[%clk 0:03:01.7]}
4. e4 {[%clk 0:03:04.2]} 4... d6 {[%clk 0:03:01.8]} 5. Qd2 {[%clk 0:03:04.7]}
5... O-O {[%clk 0:02:57.4]} 6. Bh6 {[%clk 0:03:04]} 6... c5 {[%clk 0:02:58.1]}
7. d5 {[%clk 0:03:01.3]} 7... e6 {[%clk 0:02:55.7]} 8. O-O-O {[%clk 0:02:43.5]}
8... exd5 {[%clk 0:02:55.8]} 9. exd5 {[%clk 0:02:37.1]} 9... Re8 {[%clk
0:02:54.3]} 10. Bxg7 {[%clk 0:02:34.1]} 10... Kxg7 {[%clk 0:02:54.6]} 11. h4
{[%clk 0:02:31.2]} 11... h5 {[%clk 0:02:55.1]} 12. Nf3 {[%clk 0:02:26.8]} 12...
Bf5 {[%clk 0:02:51.1]} 13. Bd3 {[%clk 0:02:23]} 13... Bxd3 {[%clk 0:02:51.2]}
14. Qxd3 {[%clk 0:02:23.6]} 14... Nbd7 {[%clk 0:02:51.2]} 15. Rhe1 {[%clk
0:02:21]} 15... Qa5 {[%clk 0:02:43.6]} 16. Qb5 {[%clk 0:02:06.8]} 16... Qc7
{[%clk 0:02:41.4]} 17. Rxe8 {[%clk 0:02:03.4]} 17... Rxe8 {[%clk 0:02:41.5]} 18.
Re1 {[%clk 0:02:04.3]} 18... Rxe1+ {[%clk 0:02:40.9]} 19. Nxe1 {[%clk
0:02:06.2]} 19... a6 {[%clk 0:02:40.7]} 20. Qe2 {[%clk 0:02:04.1]} 20... Ne5
{[%clk 0:02:37.4]} 21. Nd3 {[%clk 0:01:51.1]} 21... Neg4 {[%clk 0:02:28.3]} 22.
Nf4 {[%clk 0:01:32.2]} 22... b5 {[%clk 0:02:20.1]} 23. f3 {[%clk 0:01:28.1]}
23... Nh6 {[%clk 0:02:18.7]} 24. Ne4 {[%clk 0:01:29]} 24... Qe7 {[%clk
0:02:11.6]} 25. Kd2 {[%clk 0:01:18]} 25... Nf5 {[%clk 0:02:07]} 26. Qe1 {[%clk
0:00:42.2]} 26... Qe5 {[%clk 0:02:00.2]} 27. Nd3 {[%clk 0:00:36.1]} 27... Qxd5
{[%clk 0:01:54.7]} 28. Nxf6 {[%clk 0:00:33.7]} 28... Kxf6 {[%clk 0:01:55.3]} 29.
g4 {[%clk 0:00:31.3]} 29... Nd4 {[%clk 0:01:52.4]} 30. Qe8 {[%clk 0:00:28.6]}
30... Kg7 {[%clk 0:01:44.3]} 31. gxh5 {[%clk 0:00:27.8]} 31... Qxh5 {[%clk
0:01:43]} 0-1

[Event "*** Biggest EVER Titled Tuesday"]
[Site "Chess.com"]
[Date "2018.04.17"]
[Round "2"]
[White "PelinGorki"]
[Black "Ginger_GM"]
[Result "0-1"]
[WhiteElo "2407"]
[BlackElo "2465"]
[TimeControl "180+2"]
[EndTime "13:20:57 PDT"]
[Termination "Ginger_GM won by resignation"]

1. e4 {[%clk 0:03:01.9]} 1... e6 {[%clk 0:03:00.1]} 2. Nc3 {[%clk 0:03:02.3]}
2... d5 {[%clk 0:03:00.2]} 3. d4 {[%clk 0:03:02.9]} 3... Bb4 {[%clk 0:02:57.8]}
4. Ne2 {[%clk 0:03:03]} 4... Nc6 {[%clk 0:02:57.1]} 5. a3 {[%clk 0:03:01.6]}
5... Ba5 {[%clk 0:02:57.6]} 6. b4 {[%clk 0:02:58.5]} 6... Bb6 {[%clk 0:02:58.3]}
7. e5 {[%clk 0:02:59.9]} 7... f6 {[%clk 0:02:41.4]} 8. f4 {[%clk 0:02:50.7]}
8... Nh6 {[%clk 0:02:38.2]} 9. Na4 {[%clk 0:02:47.7]} 9... O-O {[%clk
0:02:35.1]} 10. g3 {[%clk 0:02:42.5]} 10... fxe5 {[%clk 0:02:30.8]} 11. dxe5
{[%clk 0:02:40.3]} 11... Nxe5 {[%clk 0:02:09.9]} 12. Nxb6 {[%clk 0:02:28.7]}
12... Nf3+ {[%clk 0:02:09]} 13. Kf2 {[%clk 0:02:30]} 13... axb6 {[%clk
0:02:07.3]} 14. Kxf3 {[%clk 0:02:31.1]} 14... e5 {[%clk 0:02:08.4]} 15. h3
{[%clk 0:02:03.1]} 15... Bf5 {[%clk 0:01:52]} 16. Nc3 {[%clk 0:01:51.5]} 16...
d4 {[%clk 0:01:49]} 17. Bc4+ {[%clk 0:01:49.4]} 17... Kh8 {[%clk 0:01:49.4]} 18.
Ne2 {[%clk 0:01:48.1]} 18... Qd6 {[%clk 0:01:07.9]} 19. Kf2 {[%clk 0:01:37.8]}
19... c5 {[%clk 0:01:02.7]} 20. b5 {[%clk 0:01:36.8]} 20... e4 {[%clk
0:00:55.4]} 21. Kg1 {[%clk 0:01:35.4]} 21... Rad8 {[%clk 0:00:42.3]} 22. Kh2
{[%clk 0:01:27.8]} 22... e3 {[%clk 0:00:35.3]} 23. a4 {[%clk 0:01:23.7]} 23...
Qg6 {[%clk 0:00:35.5]} 24. Bd3 {[%clk 0:01:15.8]} 24... Qh5 {[%clk 0:00:36.3]}
25. Bxf5 {[%clk 0:01:12.3]} 25... Rxf5 {[%clk 0:00:37.2]} 26. Kg2 {[%clk
0:01:13.8]} 26... Rff8 {[%clk 0:00:30.6]} 27. Bb2 {[%clk 0:01:06.7]} 27... Qd5+
{[%clk 0:00:31]} 28. Kh2 {[%clk 0:01:01.9]} 28... Rf6 {[%clk 0:00:30.6]} 29. Qd3
{[%clk 0:01:00.5]} 29... Ng4+ {[%clk 0:00:30]} 30. Kg1 {[%clk 0:00:50.4]} 30...
Nf2 {[%clk 0:00:30.7]} 0-1

[Event "*** Biggest EVER Titled Tuesday"]
[Site "Chess.com"]
[Date "2018.04.17"]
[Round "2"]
[White "Oleksandr_Bortnyk"]
[Black "Alex_Molchanov"]
[Result "1-0"]
[WhiteElo "2797"]
[BlackElo "2534"]
[TimeControl "180+2"]
[EndTime "13:20:59 PDT"]
[Termination "Oleksandr_Bortnyk won by resignation"]

1. e4 {[%clk 0:03:01.6]} 1... c6 {[%clk 0:03:00.6]} 2. Nc3 {[%clk 0:03:00.2]}
2... d5 {[%clk 0:03:00.8]} 3. Nf3 {[%clk 0:03:02.1]} 3... a6 {[%clk 0:03:00.1]}
4. h3 {[%clk 0:02:59.8]} 4... g6 {[%clk 0:02:53.2]} 5. d4 {[%clk 0:02:58.5]}
5... Bg7 {[%clk 0:02:52.8]} 6. Bd3 {[%clk 0:02:56.6]} 6... h6 {[%clk 0:02:39.8]}
7. O-O {[%clk 0:02:47.7]} 7... e6 {[%clk 0:02:40]} 8. Bf4 {[%clk 0:02:47]} 8...
Nd7 {[%clk 0:02:38.7]} 9. Re1 {[%clk 0:02:24.2]} 9... Ne7 {[%clk 0:02:37]} 10.
Qd2 {[%clk 0:02:22.6]} 10... b5 {[%clk 0:02:29.4]} 11. Re2 {[%clk 0:01:50.8]}
11... g5 {[%clk 0:02:13.8]} 12. Bd6 {[%clk 0:01:48.7]} 12... Nb6 {[%clk
0:02:12.7]} 13. Bc5 {[%clk 0:01:43.1]} 13... Nc4 {[%clk 0:01:53.5]} 14. Bxc4
{[%clk 0:01:40.1]} 14... bxc4 {[%clk 0:01:54.3]} 15. Bxe7 {[%clk 0:01:04.8]}
15... Kxe7 {[%clk 0:01:54.2]} 16. exd5 {[%clk 0:01:06.7]} 16... cxd5 {[%clk
0:01:54.8]} 17. Nxg5 {[%clk 0:01:07.6]} 17... Kf8 {[%clk 0:01:36.4]} 18. Nf3
{[%clk 0:01:05.4]} 18... Rb8 {[%clk 0:01:35.7]} 19. b3 {[%clk 0:01:04.3]} 19...
cxb3 {[%clk 0:01:35.1]} 20. axb3 {[%clk 0:01:06.2]} 20... Qc7 {[%clk 0:01:24.1]}
21. Ne5 {[%clk 0:01:05.5]} 21... Rg8 {[%clk 0:01:14.7]} 22. Rae1 {[%clk
0:00:56.3]} 22... Rb6 {[%clk 0:01:02.2]} 23. Ng4 {[%clk 0:00:50.6]} 23... h5
{[%clk 0:01:01.6]} 24. Nxd5 {[%clk 0:00:51.2]} 24... Qd8 {[%clk 0:00:40.6]} 25.
Nxb6 {[%clk 0:00:51.2]} 25... Qxb6 {[%clk 0:00:41.6]} 26. Ne5 {[%clk 0:00:47.3]}
26... Bxe5 {[%clk 0:00:22.6]} 27. Rxe5 {[%clk 0:00:46.2]} 27... Bb7 {[%clk
0:00:19]} 28. Qh6+ {[%clk 0:00:46.8]} 28... Ke8 {[%clk 0:00:18.3]} 29. Rxe6+
{[%clk 0:00:45.3]} 1-0